fUSD/lending_fUSD_20240629
["ID","MTS","AMOUNT","RATE_DAILY","PERIOD"]
[330608316,1719619673645,20.04800787,0.00011199,2]
[330608317,1719619673676,147.37527226,0.00011199,2]
[330608318,1719619744271,101.26635701,0.00011199,2]
[330608319,1719619744303,247.27030461,0.00011199,2]
[330608320,1719619744332,4249.14126186,0.00011199,2]
[330608321,1719619746364,1284.60160832,0.00011199,2]
[330608326,1719619796165,202.14706647,0.00011199,2]
[330608342,1719619831890,-3391.7728628,0.00013472,2]
[330608343,1719619831900,-449.92,0.00013832,2]
[330608344,1719619831909,-2452.8337,0.000139,2]
[330608345,1719619831918,-155.0,0.00013989,2]
[330608346,1719619831928,-159.45289812,0.00014393,2]
[330608347,1719619831938,-226.99073299,0.00014849,2]
[330608348,1719619831947,-163.85029,0.00015342,2]
[330608349,1719619831957,-200.0,0.00015635,2]
[330608350,1719619831968,-2727.24,0.00015646,2]
[330608351,1719619831978,-953.28,0.0001565,2]
[330608352,1719619831987,-848.18,0.0001565,2]
[330608353,1719619831997,-250.0,0.00015663,2]
[330608354,1719619832006,-640.0,0.00015789,2]
[330608355,1719619832016,-1500.0,0.00015789,5]
[330608356,1719619832025,-182.02,0.00015804,2]
[330608357,1719619832035,-449.92,0.00016096,2]
[330608358,1719619832044,-163.85029,0.00016164,2]
[330608359,1719619832053,-680.0,0.000162,2]
[330608360,1719619832063,-2085.0,0.000162,2]
[330608361,1719619832072,-150.0,0.00016548,2]
[330608362,1719619832082,-9798.14982609,0.00016549,2]
[330608363,1719619832094,-67080.33239545,0.00016549,2]
[330608364,1719619832103,-154.60090979,0.00016699,2]
[330608365,1719619832112,-82748.8936,0.00016769,2]
[330608366,1719619832121,-986.0335,0.00016769,2]
[330608367,1719619832130,-150.32777,0.00016799,2]
[330608368,1719619832140,-461.81527,0.000168,2]
[330608369,1719619832149,-1915.0,0.000168,2]
[330608370,1719619832159,-200.0,0.00016832,2]
[330608371,1719619832168,-200.0,0.00016833,2]
[330608372,1719619832178,-200.0,0.00016833,2]
[330608373,1719619832188,-7653.4874,0.00016869,2]
[330608374,1719619832198,-64108.2578,0.00016869,2]
[330608375,1719619832207,-5598.6047145,0.00016957,2]
[330608376,1719619832219,-55854.6019366,0.00016957,2]
[330608377,1719619832229,-210.7628832,0.00016957,2]
[330608378,1719619832238,-2838.1279165,0.00016957,2]
[330608379,1719619832248,-1092.4811007,0.00016957,2]
[330608380,1719619832257,-2000.0,0.00016969,2]
[330608381,1719619832266,-200.0,0.00016969,2]
[330608382,1719619832275,-176124.26491997,0.00016969,2]
[330608383,1719619832286,-141321.21738042,0.00016969,2]
[330608386,1719619838055,-1086.35921328,0.00016969,2]
[330608388,1719619840475,-64134.08991097,0.00016969,2]
[330608417,1719619842967,-5160.50464642,0.00016969,2]
[330608420,1719619843610,-542.85650843,0.00016969,2]
[330608436,1719619845950,-3168.98365127,0.00016969,2]
[330608437,1719619846021,-1500.0,0.00016969,2]
[330608438,1719619846084,-6134.45000001,0.00016969,2]
[330608439,1719619846095,-432.05266282,0.00016969,2]
[330608440,1719619846152,-26642.91002026,0.00016969,2]
[330608441,1719619846161,-163.85029,0.00016986,2]
[330608442,1719619846171,-1507.0,0.00017,2]
[330608443,1719619846180,-2000.0,0.00017139,2]
[330608444,1719619846189,-2000.0,0.0001731,2]
[330608445,1719619846199,-526.05327897,0.000177,2]
[330608446,1719619846208,-640.0,0.00017762,2]
[330608447,1719619846217,-163.85029,0.00017808,2]
[330608448,1719619846229,-400.0,0.000179,6]
[330608449,1719619846238,-154.60090974,0.00017937,2]
[330608450,1719619846247,-335.69497828,0.00018,2]
[330608451,1719619846256,-335.69497828,0.00018,2]
[330608452,1719619846265,-335.69497828,0.00018,2]
[330608453,1719619846275,-335.69497828,0.00018,2]
[330608455,1719619846284,-335.69497828,0.00018,2]
[330608457,1719619846293,-335.69497828,0.00018,2]
[330608458,1719619846302,-335.69497828,0.00018,2]
[330608460,1719619846312,-335.69497828,0.00018,2]
[330608461,1719619846323,-335.69497828,0.00018,2]
[330608462,1719619846332,-335.69497828,0.00018,2]
[330608463,1719619846344,-335.69497828,0.00018,2]
[330608464,1719619846354,-335.69497828,0.00018128,2]
[330608465,1719619846363,-360.0,0.00018138,2]
[330608466,1719619846373,-449.92,0.0001836,2]
[330608467,1719619846382,-163.85029,0.0001863,2]
[330608468,1719619846392,-154.23,0.000189,2]
[330608469,1719619846401,-150.0,0.00018989,2]
[330608470,1719619846411,-300.0,0.00019,2]
[330608471,1719619846420,-154.60090974,0.00019175,2]
[330608472,1719619846429,-250.0,0.00019178,2]
[330608473,1719619846438,-335.69497828,0.00019183,2]
[330608474,1719619846449,-150.0,0.00019193,2]
[330608475,1719619846459,-150.0,0.00019193,2]
[330608476,1719619846468,-150.0,0.00019193,2]
[330608477,1719619846478,-150.0,0.00019193,2]
[330608478,1719619846487,-312.0457852,0.00019229,2]
[330608479,1719619846497,-461.81528,0.000193,2]
[330608480,1719619846507,-163.85029,0.00019452,2]
[330608481,1719619846516,-335.69497828,0.00019726,2]
[330608482,1719619846526,-640.0,0.00019736,2]
[330608483,1719619846536,-335.69497828,0.0001999,2]
[330608484,1719619846545,-335.69497828,0.0001999,2]
[330608485,1719619846554,-335.69497828,0.0001999,2]
[330608486,1719619846564,-335.69497828,0.0001999,2]
[330608487,1719619846574,-335.69497828,0.0001999,2]
[330608488,1719619846583,-327.02420312,0.0002,2]
[330608489,1719619846592,-155.0,0.0002,2]
[330608490,1719619846602,-6274.87852259,0.0002,2]
[330608491,1719619846611,-1278.43228934,0.0002,2]
[330608492,1719619846621,-150.0,0.0002,2]
[330608493,1719619846630,-335.69497828,0.0002009,2]
[330608494,1719619846640,-1000.0,0.000201,2]
[330608495,1719619846650,-716.13847324,0.00020102,2]
[330608496,1719619846659,-163.85029,0.00020274,2]
[330608497,1719619846668,-335.69497828,0.00020396,2]
[330608498,1719619846677,-360.0,0.00020406,2]
[330608499,1719619846691,-154.60090974,0.00020414,2]
[330608500,1719619846700,-188.08625707,0.00020547,2]
[330608501,1719619846710,-449.92,0.00020624,2]
[330608502,1719619846719,-335.69497828,0.0002079,2]
[330608503,1719619846731,-335.69497828,0.0002079,2]
[330608504,1719619846740,-275.3327896,0.00020798,2]
[330608505,1719619846750,-11106.81901358,0.000208,2]
[330608506,1719619846759,-218.44403943,0.000208,2]
[330608507,1719619846769,-472.3527563,0.000208,2]
[330608508,1719619846781,-95029.50637403,0.000208,2]
[330608509,1719619846794,-68456.51208102,0.000208,2]
[330608543,1719621032150,-6886.1216,0.00013636,2]
[330608545,1719621032163,-604.78351958,0.00014899,2]
[330608546,1719621032238,-408.85640308,0.00014899,2]
[330608547,1719621032462,-1240.78981057,0.00014899,2]
[330608548,1719621032543,-299.99,0.00014899,2]
[330608553,1719621038036,-484.29211093,0.00014899,2]
[330608554,1719621038048,-5005.16446759,0.00014899,2]
[330608555,1719621038060,-7378.31140205,0.00014899,2]
[330608556,1719621038070,-150.0,0.00016668,2]
[330608557,1719621038079,-1000.0,0.00016668,2]
[330608558,1719621038089,-509.75567521,0.00016669,2]
[330608559,1719621038100,-910.92324604,0.00016669,2]
[330608560,1719621038122,-302.84,0.00016669,2]
[330608561,1719621038134,-4454.38087875,0.00016669,2]
[330608562,1719621038143,-16326.6613,0.00016669,2]
[330608563,1719621038153,-4093.23226024,0.00016669,2]
[330608564,1719621038167,-952.01759976,0.00016669,2]
[330608565,1719621038197,-1499.66434,0.00016669,2]
[330608566,1719621038207,-426.51,0.00016769,2]
[330608567,1719621038216,-5455.2426,0.00016769,2]
[330608568,1719621038226,-372.51,0.00016808,2]
[330608569,1719621038236,-1723.61,0.0001726,2]
[330608570,1719621038245,-409.07,0.0001726,2]
[330608571,1719621038255,-2854.07101433,0.00017807,2]
[330608572,1719621038265,-3390.94454164,0.00017807,2]
[330608573,1719621038275,-2829.21023985,0.00017807,2]
[330608574,1719621038285,-2375.09157428,0.00017999,2]
[330608575,1719621038294,-4650.2,0.00018551,2]
[330608576,1719621038304,-258.48513328,0.00018562,2]
[330608577,1719621038314,-17242.04362881,0.00018572,2]
[330608578,1719621038352,-6637.95637119,0.00018572,2]
[330608579,1719621038362,-261.23,0.00018599,2]
[330608580,1719621038371,-200.0,0.00018686,2]
[330608581,1719621038381,-258.48513328,0.00018703,2]
[330608582,1719621038391,-250.0,0.00018713,2]
[330608583,1719621038401,-1012.62731708,0.00018717,2]
[330608584,1719621038411,-217.43,0.00018743,2]
[330608585,1719621038420,-258.48513328,0.00018825,2]
[330608586,1719621038430,-253.90432169,0.00018835,2]
[330608587,1719621038441,-258.48513328,0.00018846,2]
[330608589,1719621038451,-258.48513328,0.00018846,2]
[330608591,1719621038461,-258.48513328,0.00018846,2]
[330608593,1719621038471,-258.48513328,0.00018846,2]
[330608594,1719621038481,-258.48513328,0.00018846,2]
[330608595,1719621038491,-258.48513328,0.00018846,2]
[330608596,1719621038501,-10209.58,0.00018856,2]
[330608597,1719621038511,-17.9409238,0.00018864,2]
[330608598,1719621038622,-240.67317164,0.00018864,2]
[330608599,1719621038632,-528.56417589,0.00018864,2]
[330608600,1719621038642,-258.48513328,0.00018883,2]
[330608601,1719621038651,-258.48513328,0.00018886,2]
[330608602,1719621038660,-258.48513328,0.00018886,2]
[330608603,1719621038670,-1500.0,0.00018893,5]
[330608604,1719621038680,-5154.5871,0.00018896,2]
[330608605,1719621038690,-525.23538957,0.00018899,2]
[330608606,1719621038700,-1000.0,0.00018918,2]
[330608607,1719621038711,-955.85753929,0.00018919,2]
[330608608,1719621038720,-226.99073299,0.00019069,2]
[330608609,1719621038730,-372.51,0.00019072,2]
[330608610,1719621038739,-1957.44739564,0.00019098,2]
[330608611,1719621038752,-793.55260436,0.00019098,2]
[330608612,1719621038762,-250.0,0.00019178,2]
[330608613,1719621038771,-498.98209282,0.00019584,2]
[330608614,1719621038781,-430.66592486,0.00019964,2]
[330608615,1719621038791,-244.92200197,0.00019997,2]
[330608616,1719621038801,-188.08625707,0.0002,2]
[330608617,1719621038811,-578.755507,0.0002011,2]
[330608621,1719621040212,-258.48513328,0.00018886,2]
[330608622,1719621040223,-258.48513328,0.00018886,2]
[330608623,1719621040233,-258.48513328,0.00018889,2]
[330608624,1719621040247,-258.48513328,0.00018909,2]
[330608625,1719621040258,-258.48513328,0.00019088,2]
[330608626,1719621040268,-258.48513328,0.00019088,2]
[330608627,1719621040278,-258.48513328,0.000201,2]
[330608628,1719621040289,-257.794493,0.0002011,2]
[330608629,1719621040299,-1000.0,0.000202,2]
[330608630,1719621040309,-639.2161446,0.00020383,2]
[330608631,1719621040319,-258.48513328,0.00020453,2]
[330608632,1719621040329,-867.21230229,0.00020463,2]
[330608633,1719621040340,-150.0,0.00020521,2]
[330608634,1719621040350,-154.19100517,0.00020569,2]
[330608635,1719621040360,-258.48513328,0.0002057,2]
[330608636,1719621040370,-14087.3278722,0.0002058,2]
[330608637,1719621040406,-2561.84724306,0.0002058,2]
[330608638,1719621040416,-500.0,0.00020634,2]
[330608639,1719621040426,-200.0,0.00020634,2]
[330608640,1719621040435,-585.63,0.0002068,3]
[330608641,1719621040447,-6967.15544249,0.000207,2]
[330608642,1719621040478,-258.48513328,0.0002057,2]
[330608643,1719621040488,-217.97769557,0.000207,2]
[330608644,1719621040499,-401.45467657,0.000207,2]
[330608645,1719621040512,-500.0008285,0.000207,2]
[330608646,1719621040524,-1100.49284713,0.000207,2]
[330608647,1719621040535,-3632.11708,0.000207,2]
[330608648,1719621040547,-8948.21244434,0.000207,2]
[330608649,1719621040559,-436.72858919,0.000207,2]
[330608650,1719621040571,-682.59903065,0.000207,2]
[330608692,1719621043179,-258.48513328,0.0002057,2]
[330608694,1719621043188,-258.48513328,0.0002057,2]
[330608696,1719621043198,-258.48513328,0.0002057,2]
[330608698,1719621043208,-258.48513328,0.0002057,2]
[330608700,1719621043217,-258.48513328,0.0002057,2]
[330608702,1719621043227,-258.48513328,0.0002057,2]
[330608704,1719621043235,-258.48513328,0.0002057,2]
[330608706,1719621043248,-258.48513328,0.0002057,2]
[330608708,1719621043258,-258.48513328,0.0002057,2]
[330608709,1719621043267,-258.48513328,0.00020624,2]
[330608711,1719621043276,-258.48513328,0.0002069,2]
[330608713,1719621043286,-1250.56766556,0.000207,2]
[330608715,1719621043295,-8155.0153,0.00020785,2]
[330608717,1719621043304,-151.76,0.00020785,2]
[330608719,1719621043313,-6500.4920601,0.00020791,2]
[330608720,1719621043322,-12785.2770935,0.00020791,2]
[330608722,1719621043331,-22975.6391168,0.00020791,2]
[330608728,1719621043379,-5518.4535658,0.00020791,2]
[330608730,1719621043388,-2072.8783015,0.00020795,2]
[330608731,1719621043397,-480.5113452,0.00020795,2]
[330608733,1719621043407,-169.6676061,0.000208,2]
[330608735,1719621043416,-447.92404366,0.000208,2]
[330608737,1719621043425,-550.34839279,0.000208,2]
[330608739,1719621043434,-4277.45381732,0.000208,2]
[330608740,1719621043443,-581.17261921,0.000208,2]
[330608742,1719621043453,-339.23553452,0.000208,7]
[330608744,1719621043462,-200.0,0.000208,2]
[330608746,1719621043471,-2000.0,0.000208,2]
[330608748,1719621043480,-3385.49581862,0.000208,2]
[330608750,1719621043489,-307.87685,0.000208,2]
[330608752,1719621043498,-225.0,0.000208,2]
[330608754,1719621043507,-355.0,0.000208,2]
[330608755,1719621043516,-200.0,0.000208,2]
[330608757,1719621043524,-763.98264631,0.00020805,2]
[330608759,1719621043533,-16649.17511517,0.00020837,2]
[330608761,1719621043542,-225.11133665,0.00021,2]
[330608763,1719621043553,-1250.0,0.00021,2]
[330608764,1719621043562,-202.878597,0.00021,2]
[330608766,1719621043571,-200.0,0.00021008,2]
[330608768,1719621043579,-2000.0,0.00021008,2]
[330608770,1719621043588,-200.0,0.00021008,2]
[330608772,1719621043597,-1571.22316732,0.0002107,2]
[330608773,1719621043606,-947.45599384,0.00021093,2]
[330608795,1719621043869,-3529.30187106,0.00021093,2]
[330608799,1719621043952,-258.48513328,0.0002069,2]
[330608800,1719621043962,-12172.41725027,0.00021093,2]
[330608801,1719621043971,-154.19100516,0.00021128,2]
[330608802,1719621043980,-153.33,0.00021182,2]
[330608803,1719621043989,-2000.0,0.00021218,2]
[330608804,1719621043998,-1000.0,0.00021283,2]
[330608805,1719621044007,-800.0,0.000213,7]
[330608806,1719621044016,-372.51,0.00021336,2]
[330608807,1719621044025,-16649.17511517,0.0002135,2]
[330608808,1719621044034,-1700.0,0.000214,7]
[330608809,1719621044043,-2100.0,0.00021446,2]
[330608810,1719621044052,-2600.0,0.000215,7]
[330608811,1719621044061,-3500.0,0.000216,7]
[330608812,1719621044070,-16649.17511517,0.00021607,2]
[330608813,1719621044080,-323.96,0.00021644,2]
[330608814,1719621044089,-446.09,0.00021644,2]
[330608815,1719621044098,-160.5,0.00021644,2]
[330608816,1719621044108,-154.84,0.00021644,2]
[330608817,1719621044117,-158.08,0.00021644,2]
[330608818,1719621044126,-154.19100516,0.00021687,2]
[330608819,1719621044135,-4400.0,0.000217,7]
[330608820,1719621044145,-87390.63615722,0.0002171,6]
[330608821,1719621044156,-5606.71194773,0.0002171,6]
[330608822,1719621044170,-19588.75170967,0.0002171,6]
[330608823,1719621044207,-481.2146,0.0002171,6]
[330608824,1719621044219,-987.596933,0.0002171,6]
[330608825,1719621044230,-771.71644286,0.0002171,6]
[330608826,1719621044241,-752.72,0.0002171,6]
[330608831,1719621046254,-258.48513328,0.0002069,2]
[330608832,1719621046263,-57.52889884,0.0002069,2]
[330608833,1719621046291,-200.95623444,0.0002069,2]
[330608834,1719621046301,-258.48513328,0.0002069,2]
[330608835,1719621046310,-258.48513328,0.0002069,2]
[330608836,1719621046319,-258.48513328,0.0002069,2]
[330608837,1719621046328,-258.48513328,0.0002069,2]
[330608838,1719621046338,-258.48513328,0.0002069,2]
[330608839,1719621046347,-258.48513328,0.0002069,2]
[330608840,1719621046356,-258.48513328,0.0002069,2]
[330608841,1719621046366,-166.53995736,0.0002069,2]
[330608842,1719621046387,-91.94517592,0.0002069,2]
[330608843,1719621046396,-258.48513328,0.0002069,2]
[330608844,1719621046405,-258.48513328,0.0002069,2]
[330608845,1719621046415,-8150.19220952,0.0002171,6]
[330608846,1719621046424,-784.17,0.0002171,6]
[330608847,1719621046433,-311.24805547,0.00021782,2]
[330608848,1719621046442,-1326.12977083,0.00021792,2]
[330608849,1719621046492,-3268.11095002,0.00021792,2]
[330608850,1719621046502,-800.0,0.000218,7]
[330608851,1719621046511,-4064.20514798,0.00021807,2]
[330608852,1719621046548,-530.03557287,0.00021807,2]
[330608853,1719621046558,-2509.49442713,0.00021817,2]
[330608854,1719621046574,-4913.63557287,0.00021817,2]
[330608855,1719621046583,-191.29914187,0.00021817,2]
[330608856,1719621046593,-153.6761216,0.00021817,2]
[330608857,1719621046602,-3748.14608585,0.00021817,2]
[330608858,1719621046611,-163.62551668,0.00021817,2]
[330608859,1719621046621,-16649.17511517,0.00021863,2]
[330608860,1719621046630,-27565.4443251,0.0002187,2]
[330608861,1719621046639,-56532.94853423,0.0002188,2]
[330608862,1719621046649,-500.0,0.00021882,2]
[330608863,1719621046659,-154.23,0.00021886,2]
[330608864,1719621046668,-4594.24072085,0.00021887,2]
[330608865,1719621046678,-1154.0,0.0002189,2]
[330608866,1719621046687,-500.0,0.00021891,2]
[330608867,1719621046699,-500.0,0.00021891,2]
[330608868,1719621046707,-19731.4241016,0.00021896,2]
[330608869,1719621046731,-5555.32055461,0.00021896,2]
[330608872,1719621179938,188.94,0.00025127,120]
[330608945,1719622233425,-2060.1443,0.00013799,2]
[330608946,1719622233437,-381.87020983,0.00013799,2]
[330608947,1719622233449,-157.31848367,0.00013899,2]
[330608948,1719622233462,-485.0062,0.000139,2]
[330608949,1719622233474,-201.79419015,0.00013912,2]
[330608965,1719622238449,-640.25570423,0.00013912,2]
[330608966,1719622238458,-209.74,0.0001399,3]
[330608967,1719622238468,-715.75026231,0.0001399,2]
[330608968,1719622238559,-1489.19260133,0.0001399,2]
[330608969,1719622238581,-642.75558183,0.0001399,2]
[330608970,1719622238609,-3275.18380564,0.0001399,2]
[330608979,1719622240476,-1200.0,0.0001399,2]
[330608980,1719622240488,-881.09385613,0.0001399,2]
[330608981,1719622240617,-2975.71518952,0.0001399,2]
[330608982,1719622240627,-218.88190125,0.0001399,2]
[330608983,1719622240637,-300.0,0.00013998,2]
[330608984,1719622240649,-1081.72270172,0.00013999,5]
[330608985,1719622240658,-1081.72270171,0.00013999,5]
[330608986,1719622240668,-1081.72270172,0.00013999,5]
[330608987,1719622240678,-1081.72270172,0.00013999,5]
[330608988,1719622240687,-53610.47733481,0.00014,2]
[330608989,1719622240699,-58174.25502371,0.00014,2]
[330608990,1719622240712,-26741.9848236,0.00014,2]
[330608991,1719622240724,-1391.89423181,0.00014,2]
[330608992,1719622240758,-3884.85535312,0.00014,2]
[330608993,1719622240769,-480.2333528,0.00014,2]
[330608994,1719622240781,-95942.73161476,0.00014,2]
[330608995,1719622240794,-857.69234347,0.00014,2]
[330608996,1719622240818,-1053.07857187,0.00014,2]
[330608997,1719622240830,-2052.83934429,0.00014,2]
[330608998,1719622240866,-6337.61738796,0.00014,2]
[330608999,1719622240878,-292.17430624,0.00014,2]
[330609000,1719622240894,-396.05309653,0.00014,2]
[330609047,1719622244329,-339.37904,0.00014,2]
[330609048,1719622244377,-651.12,0.00014,2]
[330609096,1719622246653,-3999.883902,0.00014,2]
[330609098,1719622246664,-747.54487454,0.00014,2]
[330609113,1719622246800,-651.21,0.00014,2]
[330609118,1719622486701,14175.81148866,0.00011199,2]
[330609119,1719622569584,546.90818749,0.00011199,2]
[330609120,1719622573282,290.43605371,0.00011199,2]
[330609121,1719622584503,229.19807896,0.00011199,2]
[330609122,1719622904873,5382.8324232,0.00011199,2]
[330609124,1719622959152,12436.06416335,0.00011199,2]
[330609127,1719623120009,647.26467047,0.00011199,2]
[330609128,1719623132835,363.76426011,0.00011199,2]
[330609130,1719623198354,1368.24697006,0.00011199,2]
[330609184,1719623271543,345.9,0.00011101,2]
[330609189,1719623401102,474.34627005,0.00011199,2]
[330609199,1719623431881,-1215.0,0.00012213,2]
[330609200,1719623431891,-13.11482033,0.00012214,2]
[330609201,1719623431925,-483.00394116,0.00012214,2]
[330609202,1719623431990,-187.22839399,0.00012214,2]
[330609203,1719623432000,-159.21619931,0.00012302,2]
[330609204,1719623432011,-279.86864003,0.00012314,2]
[330609205,1719623432022,-151.27,0.00012852,2]
[330609207,1719623432032,-460.54776305,0.00012909,2]
[330609234,1719623437689,-438.70900783,0.00012909,2]
[330609236,1719623437836,-688.79293312,0.00012909,2]
[330609237,1719623437846,-185.95,0.00012974,2]
[330609238,1719623437856,-188.8812127,0.00013201,2]
[330609324,1719623439917,-3942.6087873,0.00013201,2]
[330609325,1719623439930,-157.31848366,0.00013204,2]
[330609326,1719623439943,-400.0,0.00013267,2]
[330609327,1719623439953,-345.9,0.00013365,2]
[330609328,1719623439967,-250.0,0.00013502,2]
[330609329,1719623439976,-157.31848366,0.00013565,2]
[330609330,1719623439987,-198.28,0.00013699,2]
[330609331,1719623439997,-220.93,0.00013699,2]
[330609332,1719623440007,-2829.95496021,0.00013736,2]
[330609333,1719623440016,-300.0,0.00013758,2]
[330609334,1719623440026,-250.0,0.00013794,2]
[330609335,1719623440036,-150.99,0.00013794,2]
[330609336,1719623440046,-256.56404,0.0001386,2]
[330609337,1719623440056,-2055.84,0.00013864,2]
[330609338,1719623440067,-1169.85,0.00013879,2]
[330609339,1719623440076,-1942.6,0.00013879,2]
[330609340,1719623440086,-166.14401618,0.00013899,2]
[330609341,1719623440097,-4035.8988,0.000139,2]
[330609342,1719623440106,-16111.2464,0.000139,2]
[330609343,1719623440116,-8889.54473052,0.000139,2]
[330609344,1719623440135,-157.31848366,0.00013926,2]
[330609345,1719623440146,-170.60052687,0.00013926,2]
[330609346,1719623440160,-948.70590347,0.00013926,2]
[330609347,1719623440180,-787.94090939,0.00013989,2]
[330609348,1719623440191,-155.0,0.00013989,2]
[330609349,1719623440201,-150.99,0.0001399,2]
[330609350,1719623440211,-174.78,0.0001399,3]
[330609351,1719623440220,-524.37,0.0001399,3]
[330609352,1719623440230,-188.94,0.00014,2]
[330609353,1719623440239,-17759.76070369,0.00014,2]
[330609354,1719623440261,-37204.37345565,0.00014,2]
[330609355,1719623440277,-943.94731817,0.00014,2]
[330609356,1719623440288,-1018.40000003,0.00014,2]
[330609357,1719623440313,-329306.92061539,0.00014,2]
[330609358,1719623440323,-168.18,0.00014026,2]
[330609359,1719623440333,-1195.29,0.00014174,2]
[330609361,1719623440342,-528.27,0.00014179,2]
[330609363,1719623440351,-1500.0,0.00014395,5]
[330609365,1719623440361,-2373.25886416,0.00014499,2]
[330609367,1719623440371,-2049.87487454,0.00014499,2]
[330609368,1719623440380,-2024.40030017,0.00014849,2]
[330609369,1719623440389,-155.24958707,0.00014849,2]
[330609370,1719623440399,-2336.14269005,0.00014889,2]
[330609371,1719623440410,-671.11125443,0.00014889,2]
[330609393,1719623442800,-327.35007536,0.00014889,2]
[330609394,1719623442872,-5554.94071065,0.00014889,2]
[330609395,1719623442882,-400.0,0.00014925,2]
[330609396,1719623442892,-420.0,0.00015076,2]
[330609397,1719623442901,-948.70590346,0.00015147,2]
[330609398,1719623442912,-349.56,0.0001536,3]
[330609399,1719623442923,-345.9,0.00015629,2]
[330609400,1719623442932,-6670.04715126,0.00015879,2]
[330609401,1719623442953,-2219.49757923,0.00015879,2]
[330609402,1719623442963,-646.0,0.000162,2]
[330609403,1719623442973,-2050.0,0.000162,2]
[330609404,1719623442982,-256.56404,0.0001636,2]
[330609405,1719623442991,-948.70590346,0.00016369,2]
[330609406,1719623443001,-198.28,0.00016438,2]
[330609407,1719623443010,-587.0,0.00016521,2]
[330609408,1719623443020,-400.0,0.00016584,2]
[330609409,1719623443029,-8889.54473049,0.00016868,2]
[330609410,1719623443038,-170.60052686,0.00016885,2]
[330609411,1719623443047,-600.0,0.00017027,2]
[330609412,1719623443056,-167.18,0.00017033,2]
[330609413,1719623443066,-266.20408727,0.00017159,2]
[330609414,1719623443075,-437.47612362,0.00017159,2]
[330609415,1719623443085,-456.22772113,0.00017199,2]
[330609416,1719623443094,-1254.22653528,0.00017253,2]
[330609417,1719623443103,-283.9733406,0.00017253,2]
[330609418,1719623443112,-251.10919789,0.00017257,2]
[330609419,1719623443121,-297.5322264,0.00017259,2]
[330609420,1719623443130,-948.70590346,0.0001759,2]
[330609421,1719623443139,-155.0,0.00017599,2]
[330609422,1719623443148,-226.99073299,0.00017599,2]
[330609423,1719623443158,-753.56799231,0.00017703,2]
[330609424,1719623443167,-8889.54473049,0.00017857,2]
[330609425,1719623443177,-1286.44742731,0.00017889,2]
[330609426,1719623443187,-345.9,0.00017893,2]
[330609427,1719623443196,-707.0,0.00018104,2]
[330609428,1719623443207,-400.0,0.00018242,2]
[330609429,1719623443217,-500.0,0.00018492,2]
[330609430,1719623443226,-500.0,0.00018501,2]
[330609431,1719623443235,-500.0,0.0001851,2]
[330609432,1719623443244,-500.0,0.00018519,2]
[330609433,1719623443254,-500.0,0.00018527,2]
[330609434,1719623443263,-500.0,0.00018536,2]
[330609435,1719623443272,-500.0,0.00018545,2]
[330609436,1719623443282,-500.0,0.00018554,2]
[330609437,1719623443291,-500.0,0.00018563,2]
[330609438,1719623443301,-500.0,0.00018571,2]
[330609439,1719623443310,-500.0,0.0001858,2]
[330609440,1719623443320,-500.0,0.00018589,2]
[330609441,1719623443329,-500.0,0.00018598,2]
[330609442,1719623443338,-500.0,0.00018607,2]
[330609443,1719623443348,-500.0,0.00018615,2]
[330609444,1719623443358,-500.0,0.00018624,2]
[330609445,1719623443367,-500.0,0.00018633,2]
[330609446,1719623443376,-500.0,0.00018642,2]
[330609447,1719623443386,-500.0,0.00018651,2]
[330609448,1719623443395,-500.0,0.00018659,2]
[330609449,1719623443405,-500.0,0.00018668,2]
[330609450,1719623443415,-500.0,0.00018677,2]
[330609451,1719623443424,-500.0,0.00018686,2]
[330609452,1719623443433,-500.0,0.00018695,2]
[330609453,1719623443445,-307.73444188,0.00018764,2]
[330609454,1719623443455,-948.70590346,0.00018811,2]